fUSD/lending_fUSD_20250308
["ID","MTS","AMOUNT","RATE_DAILY","PERIOD"]
[355630443,1741414251553,-2492.44,8.219e-05,2]
[355630444,1741414251563,-500.0,8.219e-05,2]
[355630445,1741414251573,-500.0,8.219e-05,2]
[355630446,1741414251582,-500.0,8.219e-05,2]
[355630447,1741414251592,-1007.54,8.219e-05,2]
[355630448,1741414251601,-1046.86,8.219e-05,2]
[355630449,1741414251611,-1352.43,8.219e-05,2]
[355630450,1741414251621,-856.39,8.219e-05,2]
[355630451,1741414251630,-500.0,8.219e-05,2]
[355630452,1741414251640,-574.16038725,8.219e-05,2]
[355630453,1741414251650,-500.0,8.219e-05,2]
[355630454,1741414251659,-500.0,8.219e-05,2]
[355630455,1741414251669,-500.0,8.219e-05,2]
[355630456,1741414251680,-500.0,8.219e-05,2]
[355630457,1741414251690,-500.0,8.219e-05,2]
[355630458,1741414251699,-500.0,8.219e-05,2]
[355630459,1741414251709,-500.0,8.219e-05,2]
[355630460,1741414251721,-500.0,8.219e-05,2]
[355630461,1741414251731,-517.31667613,8.219e-05,2]
[355630462,1741414251740,-517.28167265,8.219e-05,2]
[355630463,1741414251749,-1894.22,8.219e-05,2]
[355630464,1741414251759,-500.0,8.219e-05,2]
[355630465,1741414251769,-500.0,8.219e-05,2]
[355630466,1741414251778,-534.44,8.219e-05,2]
[355630467,1741414251788,-725.57,8.219e-05,2]
[355630468,1741414251797,-512.27117542,8.219e-05,2]
[355630469,1741414251807,-500.0,8.219e-05,2]
[355630470,1741414251817,-528.26484414,8.219e-05,2]
[355630471,1741414251827,-486.26292163,8.219e-05,2]
[355630472,1741414251837,-500.0,8.219e-05,2]
[355630473,1741414251847,-319.01073114,8.219e-05,2]
[355630474,1741414251857,-1168.18,8.219e-05,2]
[355630475,1741414251867,-500.0,8.219e-05,2]
[355630476,1741414251877,-500.0,8.219e-05,2]
[355630477,1741414251887,-500.0,8.219e-05,2]
[355630478,1741414251896,-500.0,8.219e-05,2]
[355630479,1741414251906,-1084.81,8.219e-05,2]
[355630480,1741414251915,-500.0,8.219e-05,2]
[355630481,1741414251924,-500.0,8.219e-05,2]
[355630482,1741414251934,-500.0,8.219e-05,2]
[355630483,1741414251944,-524.03003039,8.219e-05,2]
[355630484,1741414251953,-500.0,8.219e-05,2]
[355630485,1741414251963,-511.55559331,8.219e-05,2]
[355630486,1741414251972,-500.0,8.219e-05,2]
[355630487,1741414251983,-500.0,8.219e-05,2]
[355630488,1741414251994,-500.0,8.219e-05,2]
[355630489,1741414252003,-500.0,8.219e-05,2]
[355630490,1741414252013,-518.01726632,8.219e-05,2]
[355630491,1741414252023,-1887.2,8.219e-05,2]
[355630492,1741414252032,-225.47064989,8.219e-05,2]
[355630493,1741414252043,-500.0,8.219e-05,2]
[355630494,1741414252053,-500.0,8.219e-05,2]
[355630495,1741414252064,-553.63,8.219e-05,2]
[355630496,1741414252074,-982.99,8.219e-05,2]
[355630497,1741414252084,-500.0,8.219e-05,2]
[355630498,1741414252094,-500.0,8.219e-05,2]
[355630499,1741414252104,-1926.9,8.219e-05,2]
[355630500,1741414252114,-525.51836646,8.219e-05,2]
[355630501,1741414252125,-500.0,8.219e-05,2]
[355630502,1741414252135,-500.0,8.219e-05,2]
[355630503,1741414252144,-2585.08,8.219e-05,2]
[355630504,1741414252154,-500.0,8.219e-05,2]
[355630505,1741414252164,-500.0,8.219e-05,2]
[355630506,1741414252174,-500.0,8.219e-05,2]
[355630507,1741414252184,-1284.13,8.219e-05,2]
[355630508,1741414252194,-2745.01,8.219e-05,2]
[355630509,1741414252203,-4391.74,8.219e-05,2]
[355630510,1741414252227,-643.86080156,8.219e-05,2]
[355630511,1741414252236,-500.0,8.219e-05,2]
[355630512,1741414252246,-500.0,8.219e-05,2]
[355630513,1741414252255,-500.0,8.219e-05,2]
[355630514,1741414252264,-500.0,8.219e-05,2]
[355630515,1741414252273,-1255.13,8.219e-05,2]
[355630516,1741414252283,-500.0,8.219e-05,2]
[355630517,1741414252292,-500.0,8.219e-05,2]
[355630518,1741414252301,-2938.41,8.219e-05,2]
[355630519,1741414252311,-500.0,8.219e-05,2]
[355630520,1741414252320,-500.0,8.219e-05,2]
[355630521,1741414252330,-1588.81,8.219e-05,2]
[355630522,1741414252339,-1298.5,8.219e-05,2]
[355630523,1741414252349,-500.0,8.219e-05,2]
[355630524,1741414252358,-503.36969881,8.219e-05,2]
[355630525,1741414252367,-4321.43,8.219e-05,2]
[355630526,1741414252376,-500.0,8.219e-05,2]
[355630527,1741414252387,-500.0,8.219e-05,2]
[355630528,1741414252396,-946.58,8.219e-05,2]
[355630529,1741414252405,-500.0,8.219e-05,2]
[355630530,1741414252414,-500.0,8.219e-05,2]
[355630531,1741414252423,-12124.68,8.219e-05,2]
[355630532,1741414252433,-500.0,8.219e-05,2]
[355630533,1741414252442,-7117.09,8.219e-05,2]
[355630534,1741414252453,-616.54724656,8.219e-05,2]
[355630535,1741414252463,-500.0,8.219e-05,2]
[355630536,1741414252472,-566.47832685,8.219e-05,2]
[355630537,1741414252482,-1156.07,8.219e-05,2]
[355630538,1741414252492,-2634.76,8.219e-05,2]
[355630539,1741414252501,-1717.34,8.219e-05,2]
[355630540,1741414252511,-3290.19,8.219e-05,2]
[355630541,1741414252521,-1156.76,8.219e-05,2]
[355630542,1741414252531,-503.05905822,8.219e-05,2]
[355630543,1741414252540,-5816.94,8.219e-05,2]
[355630544,1741414252550,-47277.35,8.219e-05,2]
[355630545,1741414252559,-10360.62,8.219e-05,2]
[355630546,1741414252569,-1075.23,8.219e-05,2]
[355630547,1741414252578,-500.0,8.219e-05,2]
[355630548,1741414252588,-518.59483642,8.219e-05,2]
[355630549,1741414252598,-500.0,8.219e-05,2]
[355630550,1741414252607,-500.0,8.219e-05,2]
[355630551,1741414252617,-511.03315795,8.219e-05,2]
[355630552,1741414252626,-500.0,8.219e-05,2]
[355630553,1741414252638,-500.0,8.219e-05,2]
[355630554,1741414252647,-500.0,8.219e-05,2]
[355630555,1741414252660,-754.83,8.219e-05,2]
[355630556,1741414252670,-6858.66,8.219e-05,2]
[355630557,1741414252679,-500.0,8.219e-05,2]
[355630558,1741414252689,-1327.75,8.219e-05,2]
[355630559,1741414252698,-1558.4,8.219e-05,2]
[355630560,1741414252708,-500.0,8.219e-05,2]
[355630561,1741414252721,-7737.03,8.219e-05,2]
[355630562,1741414252731,-500.0,8.219e-05,2]
[355630563,1741414252740,-2664.94,8.219e-05,2]
[355630564,1741414252750,-500.0,8.219e-05,2]
[355630565,1741414252761,-1669.01,8.219e-05,2]
[355630566,1741414252771,-821.31,8.219e-05,2]
[355630567,1741414252780,-500.0,8.219e-05,2]
[355630568,1741414252790,-500.0,8.219e-05,2]
[355630569,1741414252800,-2769.59,8.219e-05,2]
[355630570,1741414252810,-1422.9,8.219e-05,2]
[355630571,1741414252819,-1141.3,8.219e-05,2]
[355630572,1741414252828,-1976.6,8.219e-05,2]
[355630573,1741414252838,-500.0,8.219e-05,2]
[355630574,1741414252847,-4731.86,8.219e-05,2]
[355630575,1741414252857,-500.0,8.219e-05,2]
[355630576,1741414252869,-500.0,8.219e-05,2]
[355630577,1741414252878,-1089.95,8.219e-05,2]
[355630578,1741414252889,-500.0,8.219e-05,2]
[355630579,1741414252900,-500.0,8.219e-05,2]
[355630580,1741414252910,-500.0,8.219e-05,2]
[355630581,1741414252919,-501.64147662,8.219e-05,2]
[355630582,1741414252928,-500.0,8.219e-05,2]
[355630583,1741414252938,-4245.41,8.219e-05,2]
[355630584,1741414252947,-1886.26,8.219e-05,2]
[355630585,1741414252956,-500.0,8.219e-05,2]
[355630586,1741414252966,-773.44,8.219e-05,2]
[355630587,1741414252975,-2364.67,8.219e-05,2]
[355630588,1741414252984,-14417.27,8.219e-05,2]
[355630589,1741414252994,-500.0,8.219e-05,2]
[355630590,1741414253003,-516.6,8.219e-05,2]
[355630591,1741414253012,-1072.14,8.219e-05,2]
[355630592,1741414253021,-500.0,8.219e-05,2]
[355630593,1741414253030,-965.04,8.219e-05,2]
[355630594,1741414253040,-4647.48,8.219e-05,2]
[355630595,1741414253049,-500.0,8.219e-05,2]
[355630596,1741414253059,-6748.55,8.219e-05,2]
[355630597,1741414253068,-4436.69,8.219e-05,2]
[355630598,1741414253077,-500.05,8.219e-05,2]
[355630599,1741414253087,-554.33,8.219e-05,2]
[355630600,1741414253096,-500.0,8.219e-05,2]
[355630601,1741414253106,-2204.54,8.219e-05,2]
[355630602,1741414253115,-500.0,8.219e-05,2]
[355630603,1741414253124,-1446.39,8.219e-05,2]
[355630604,1741414253133,-508.8133806,8.219e-05,2]
[355630605,1741414253143,-511.86577201,8.219e-05,2]
[355630606,1741414253152,-2448.92,8.219e-05,2]
[355630607,1741414253161,-1092.84,8.219e-05,2]
[355630608,1741414253170,-916.43,8.219e-05,2]
[355630609,1741414253180,-9338.59,8.219e-05,2]
[355630610,1741414253189,-508.44421363,8.219e-05,2]
[355630611,1741414253199,-4384.43,8.219e-05,2]
[355630612,1741414253208,-500.0,8.219e-05,2]
[355630613,1741414253218,-509.24404871,8.219e-05,2]
[355630614,1741414253227,-500.0,8.219e-05,2]
[355630615,1741414253237,-508.96287179,8.219e-05,2]
[355630616,1741414253246,-500.0,8.219e-05,2]
[355630617,1741414253255,-3894.31,8.219e-05,2]
[355630618,1741414253265,-3683.74,8.219e-05,2]
[355630619,1741414253275,-500.0,8.219e-05,2]
[355630620,1741414253285,-500.0,8.219e-05,2]
[355630621,1741414253295,-500.0,8.219e-05,2]
[355630622,1741414253305,-500.0,8.219e-05,2]
[355630623,1741414253314,-500.0,8.219e-05,2]
[355630624,1741414253324,-524.74117067,8.219e-05,2]
[355630625,1741414253334,-5658.2,8.219e-05,2]
[355630626,1741414253343,-500.0,8.219e-05,2]
[355630627,1741414253354,-500.0,8.219e-05,2]
[355630628,1741414253364,-500.0,8.219e-05,2]
[355630629,1741414253373,-500.0,8.219e-05,2]
[355630630,1741414253384,-505.69693889,8.219e-05,2]
[355630631,1741414253394,-510.03805744,8.219e-05,2]
[355630632,1741414253404,-1250.82,8.219e-05,2]
[355630633,1741414253413,-500.0,8.219e-05,2]
[355630634,1741414253422,-2802.87,8.219e-05,2]
[355630635,1741414253432,-375.925617,8.219e-05,2]
[355630636,1741414253441,-1248.56,8.219e-05,2]
[355630637,1741414253451,-500.0,8.219e-05,2]
[355630638,1741414253461,-500.0,8.219e-05,2]
[355630639,1741414253472,-1209.31,8.219e-05,2]
[355630640,1741414253481,-1749.94,8.219e-05,2]
[355630641,1741414253491,-3194.69,8.219e-05,2]
[355630642,1741414253501,-3617.4,8.219e-05,2]
[355630643,1741414253510,-500.0,8.219e-05,2]
[355630644,1741414253520,-1873.28,8.219e-05,2]
[355630645,1741414253530,-1967.32,8.219e-05,2]
[355630646,1741414253540,-512.43089727,8.219e-05,2]
[355630647,1741414253549,-506.83363145,8.219e-05,2]
[355630648,1741414253559,-1115.86,8.219e-05,2]
[355630649,1741414253569,-904.95,8.219e-05,2]
[355630650,1741414253579,-500.0,8.219e-05,2]
[355630651,1741414253589,-500.0,8.219e-05,2]
[355630652,1741414253599,-2901.56,8.219e-05,2]
[355630653,1741414253608,-14846.79,8.219e-05,2]
[355630654,1741414253618,-509.30584324,8.219e-05,2]
[355630655,1741414253630,-503.76417971,8.219e-05,2]
[355630656,1741414253796,-3492.23,8.219e-05,2]
[355630657,1741414253808,-500.0,8.219e-05,2]
[355630658,1741414253817,-507.48631692,8.219e-05,2]
[355630659,1741414253827,-5520.11,8.219e-05,2]
[355630660,1741414253837,-2533.22,8.219e-05,2]
[355630661,1741414253847,-2002.34,8.219e-05,2]
[355630662,1741414253857,-939.4,8.219e-05,2]
[355630663,1741414253868,-505.78342107,8.219e-05,2]
[355630664,1741414253878,-6470.24,8.219e-05,2]
[355630665,1741414253887,-597.55204922,8.219e-05,2]
[355630666,1741414253897,-500.0,8.219e-05,2]
[355630667,1741414253908,-2604.8,8.219e-05,2]
[355630668,1741414253918,-620.69425599,8.219e-05,2]
[355630669,1741414253928,-7739.87,8.219e-05,2]
[355630670,1741414253938,-500.0,8.219e-05,2]
[355630671,1741414253947,-510.39820071,8.219e-05,2]
[355630672,1741414253957,-6890.8,8.219e-05,2]
[355630673,1741414253967,-447.53551338,8.219e-05,2]
[355630674,1741414253977,-1829.8,8.219e-05,2]
[355630675,1741414253987,-500.0,8.219e-05,2]
[355630676,1741414253996,-500.0,8.219e-05,2]
[355630677,1741414254006,-509.52372195,8.219e-05,2]
[355630678,1741414254015,-894.56,8.219e-05,2]
[355630679,1741414254025,-2227.93,8.219e-05,2]
[355630680,1741414254035,-500.0,8.219e-05,2]
[355630681,1741414254045,-2915.63,8.219e-05,2]
[355630682,1741414254056,-513.29722645,8.219e-05,2]
[355630683,1741414254067,-5246.76,8.219e-05,2]
[355630684,1741414254076,-229.75359296,8.219e-05,2]
[355630685,1741414254086,-500.0,8.219e-05,2]
[355630686,1741414254096,-4042.96,8.219e-05,2]
[355630687,1741414254105,-500.0,8.219e-05,2]
[355630688,1741414254115,-7079.99,8.219e-05,2]
[355630689,1741414254125,-3787.66,8.219e-05,2]
[355630690,1741414254135,-638.89171515,8.219e-05,2]
[355630691,1741414254145,-500.0,8.219e-05,2]
[355630692,1741414254155,-4719.53,8.219e-05,2]
[355630693,1741414254164,-526.14,8.219e-05,2]
[355630694,1741414254174,-759.66,8.219e-05,2]
[355630695,1741414254186,-500.0,8.219e-05,2]
[355630696,1741414254195,-3410.95,8.219e-05,2]
[355630697,1741414254204,-500.0,8.219e-05,2]
[355630698,1741414254214,-500.0,8.219e-05,2]
[355630699,1741414254224,-3531.21,8.219e-05,2]
[355630700,1741414254241,-500.0,8.219e-05,2]
[355630701,1741414254250,-7993.33,8.219e-05,2]
[355630702,1741414254260,-502.24049912,8.219e-05,2]
[355630703,1741414254270,-500.0,8.219e-05,2]
[355630704,1741414254280,-3998.31,8.219e-05,2]
[355630705,1741414254290,-500.0,8.219e-05,2]
[355630706,1741414254300,-500.0,8.219e-05,2]
[355630707,1741414254309,-500.0,8.219e-05,2]
[355630708,1741414254318,-500.0,8.219e-05,2]
[355630709,1741414254328,-1126.05,8.219e-05,2]
[355630710,1741414254337,-500.0,8.219e-05,2]
[355630711,1741414254347,-500.0,8.219e-05,2]
[355630712,1741414254356,-500.0,8.219e-05,2]
[355630713,1741414254366,-500.0,8.219e-05,2]
[355630714,1741414254376,-500.0,8.219e-05,2]
[355630715,1741414254385,-500.0,8.219e-05,2]
[355630716,1741414254394,-501.18429661,8.219e-05,2]
[355630717,1741414254403,-14243.15,8.219e-05,2]
[355630718,1741414254413,-500.0,8.219e-05,2]
[355630719,1741414254422,-2093.81,8.219e-05,2]
[355630720,1741414254432,-1614.81,8.219e-05,2]
[355630721,1741414254442,-500.0,8.219e-05,2]
[355630722,1741414254451,-3455.5,8.219e-05,2]
[355630723,1741414254461,-1472.68,8.219e-05,2]
[355630724,1741414254471,-500.0,8.219e-05,2]
[355630725,1741414254481,-500.0,8.219e-05,2]
[355630726,1741414254490,-500.0,8.219e-05,2]
[355630727,1741414254499,-4995.98,8.219e-05,2]
[355630728,1741414254509,-3148.86,8.219e-05,2]
[355630729,1741414254519,-501.22690783,8.219e-05,2]
[355630730,1741414254528,-1551.96,8.219e-05,2]
[355630731,1741414254538,-500.0,8.219e-05,2]
[355630732,1741414254547,-3146.61,8.219e-05,2]
[355630733,1741414254559,-1369.79,8.219e-05,2]
[355630734,1741414254568,-500.0,8.219e-05,2]
[355630735,1741414254578,-500.0,8.219e-05,2]
[355630736,1741414254588,-5499.01,8.219e-05,2]
[355630737,1741414254596,-500.0,8.219e-05,2]
[355630738,1741414254606,-3009.8,8.219e-05,2]
[355630739,1741414254615,-509.36760641,8.219e-05,2]
[355630740,1741414254625,-500.0,8.219e-05,2]
[355630741,1741414254634,-3798.15,8.219e-05,2]
[355630742,1741414254644,-500.0,8.219e-05,2]
[355630743,1741414254653,-1605.17,8.219e-05,2]
[355630744,1741414254663,-952.21,8.219e-05,2]
[355630745,1741414254673,-1618.17,8.219e-05,2]
[355630746,1741414254683,-500.92124153,8.219e-05,2]
[355630747,1741414254692,-500.0,8.219e-05,2]
[355630748,1741414254701,-4000.99,8.219e-05,2]
[355630749,1741414254712,-9264.51,8.219e-05,2]
[355630750,1741414254723,-8463.31,8.219e-05,2]
[355630751,1741414254733,-2127.6,8.219e-05,2]
[355630752,1741414254743,-2648.81,8.219e-05,2]
[355630753,1741414254752,-1450.25,8.219e-05,2]
[355630754,1741414254763,-598.37,8.219e-05,2]
[355630755,1741414254772,-509.57532206,8.219e-05,2]
[355630756,1741414254782,-25844.66,8.219e-05,2]
[355630757,1741414254791,-509.61,8.219e-05,2]
[355630758,1741414254804,-500.0,8.219e-05,2]
[355630759,1741414254814,-4498.11,8.219e-05,2]
[355630760,1741414254823,-645.91967203,8.219e-05,2]
[355630761,1741414254832,-500.0,8.219e-05,2]
[355630762,1741414254842,-5398.16,8.219e-05,2]
[355630763,1741414254851,-505.34576907,8.219e-05,2]
[355630764,1741414254860,-1208.88,8.219e-05,2]
[355630765,1741414254870,-3799.62,8.219e-05,2]
[355630766,1741414254879,-1984.26,8.219e-05,2]
[355630767,1741414254889,-507.35882882,8.219e-05,2]
[355630768,1741414254899,-1818.21,8.219e-05,2]
[355630769,1741414254908,-500.0,8.219e-05,2]
[355630770,1741414254917,-4967.64,8.219e-05,2]
[355630771,1741414254927,-3277.1,8.219e-05,2]
[355630772,1741414254936,-3035.26,8.219e-05,2]
[355630773,1741414254945,-1874.65,8.219e-05,2]
[355630774,1741414254955,-1467.33,8.219e-05,2]
[355630775,1741414254964,-7850.79,8.219e-05,2]
[355630776,1741414254974,-1486.95,8.219e-05,2]
[355630777,1741414254983,-4012.37,8.219e-05,2]
[355630778,1741414254992,-500.0,8.219e-05,2]
[355630779,1741414255001,-225.19951644,8.219e-05,2]
[355630780,1741414255010,-1233.5,8.219e-05,2]
[355630781,1741414255020,-500.0,8.219e-05,2]
[355630782,1741414255029,-18036.87,8.219e-05,2]
[355630783,1741414255039,-4038.67,8.219e-05,2]
[355630784,1741414255048,-504.88610461,8.219e-05,2]
[355630785,1741414255057,-2876.54,8.219e-05,2]
[355630786,1741414255067,-1493.96,8.219e-05,2]
[355630787,1741414255077,-500.0,8.219e-05,2]
[355630788,1741414255087,-504.84053589,8.219e-05,2]
[355630789,1741414255096,-2395.48,8.219e-05,2]
[355630790,1741414255105,-500.0,8.219e-05,2]
[355630791,1741414255114,-500.0,8.219e-05,2]
[355630792,1741414255123,-500.0,8.219e-05,2]
[355630793,1741414255133,-513.58751701,8.219e-05,2]
[355630794,1741414255142,-500.0,8.219e-05,2]
[355630795,1741414255152,-5851.78,8.219e-05,2]
[355630796,1741414255162,-500.0,8.219e-05,2]
[355630797,1741414255172,-793.21,8.219e-05,2]
[355630798,1741414255181,-2111.58,8.219e-05,2]
[355630799,1741414255191,-159.0,8.219e-05,3]
[355630800,1741414255201,-500.0,8.219e-05,2]
[355630801,1741414255211,-575.23,8.219e-05,2]
[355630802,1741414255220,-2083.64,8.219e-05,2]
[355630803,1741414255229,-3608.2,8.219e-05,2]
[355630804,1741414255239,-13722.98,8.219e-05,2]
[355630805,1741414255249,-1665.59,8.219e-05,2]
[355630806,1741414255258,-500.0,8.219e-05,2]
[355630807,1741414255268,-514.83820831,8.219e-05,2]
[355630808,1741414255277,-1688.0,8.219e-05,2]
[355630809,1741414255287,-12120.81,8.219e-05,2]
[355630810,1741414255297,-500.0,8.219e-05,2]
[355630811,1741414255306,-721.51,8.219e-05,2]
[355630812,1741414255316,-2056.19,8.219e-05,2]
[355630813,1741414255325,-551.12,8.219e-05,2]
[355630814,1741414255335,-500.0,8.219e-05,2]
[355630815,1741414255344,-4698.65,8.219e-05,2]
[355630816,1741414255354,-500.0,8.219e-05,2]
[355630817,1741414255364,-500.0,8.219e-05,2]
[355630818,1741414255373,-1400.68,8.219e-05,2]
[355630819,1741414255382,-9078.26,8.219e-05,2]
[355630820,1741414255393,-1535.7,8.219e-05,2]
[355630821,1741414255402,-500.0,8.219e-05,2]
[355630822,1741414255412,-500.0,8.219e-05,2]
[355630823,1741414255422,-1778.75,8.219e-05,2]
[355630824,1741414255431,-3413.68,8.219e-05,2]
[355630825,1741414255442,-500.0,8.219e-05,2]
[355630826,1741414255451,-542.25660349,8.219e-05,2]
[355630827,1741414255463,-1172.66,8.219e-05,2]
[355630828,1741414255473,-1760.1,8.219e-05,2]
[355630829,1741414255483,-54030.76,8.219e-05,2]
[355630830,1741414255493,-500.0,8.219e-05,2]
[355630831,1741414255502,-1803.38,8.219e-05,2]
[355630832,1741414255512,-497.03083849,8.219e-05,2]
[355630833,1741414255521,-500.0,8.219e-05,2]
[355630834,1741414255530,-500.0,8.219e-05,2]
[355630835,1741414255540,-1225.05,8.219e-05,2]
[355630836,1741414255550,-17323.14,8.219e-05,2]
[355630837,1741414255559,-12513.42,8.219e-05,2]
[355630838,1741414255568,-500.0,8.219e-05,2]
[355630839,1741414255579,-755.51,8.219e-05,2]
[355630840,1741414255588,-2590.97,8.219e-05,2]
[355630841,1741414255598,-500.0,8.219e-05,2]
[355630842,1741414255608,-1193.64,8.219e-05,2]
[355630843,1741414255617,-500.0,8.219e-05,2]
[355630844,1741414255626,-2881.01,8.219e-05,2]
[355630845,1741414255636,-701.91,8.219e-05,2]
[355630846,1741414255646,-500.0,8.219e-05,2]
[355630847,1741414255655,-1798.36,8.219e-05,2]
[355630848,1741414255664,-1519.82,8.219e-05,2]
[355630849,1741414255673,-1701.93,8.219e-05,2]
[355630850,1741414255683,-500.0,8.219e-05,2]
[355630851,1741414255692,-500.0,8.219e-05,2]
[355630852,1741414255701,-2421.85,8.219e-05,2]
[355630853,1741414255710,-1000.0,8.219e-05,2]
[355630854,1741414255724,-167.28,8.219e-05,2]
[355630855,1741414255733,-1000.0,8.219e-05,2]
[355630856,1741414255743,-1000.0,8.219e-05,2]
[355630857,1741414255752,-1000.0,8.219e-05,2]
[355630858,1741414255762,-1000.0,8.219e-05,2]
[355630859,1741414255771,-807.0,8.219e-05,2]
[355630860,1741414255781,-1000.0,8.219e-05,2]
[355630861,1741414255790,-1000.0,8.219e-05,2]
[355630862,1741414255801,-1000.0,8.219e-05,2]
[355630863,1741414255811,-1000.0,8.219e-05,2]
[355630864,1741414255820,-1000.0,8.219e-05,2]
[355630865,1741414255829,-1000.0,8.219e-05,2]
[355630866,1741414255838,-1000.0,8.219e-05,2]
[355630867,1741414255849,-1000.0,8.219e-05,2]
[355630868,1741414255859,-1000.0,8.219e-05,2]
[355630869,1741414255870,-1000.0,8.219e-05,2]
[355630870,1741414255879,-1000.0,8.219e-05,2]
[355630871,1741414255889,-1000.0,8.219e-05,2]
[355630872,1741414255898,-1000.0,8.219e-05,2]
[355630873,1741414255907,-1000.0,8.219e-05,2]
[355630874,1741414255916,-1000.0,8.219e-05,2]
[355630875,1741414255925,-1000.0,8.219e-05,2]
[355630876,1741414255934,-1000.0,8.219e-05,2]
[355630877,1741414255943,-1000.0,8.219e-05,2]
[355630878,1741414255952,-1000.0,8.219e-05,2]
[355630879,1741414255961,-1000.0,8.219e-05,2]
[355630880,1741414255971,-1000.0,8.219e-05,2]
[355630881,1741414255980,-1000.0,8.219e-05,2]
[355630882,1741414255990,-1000.0,8.219e-05,2]
[355630883,1741414256000,-1000.0,8.219e-05,2]
[355630884,1741414256009,-1000.0,8.219e-05,2]
[355630885,1741414256018,-1000.0,8.219e-05,2]
[355630886,1741414256028,-1000.0,8.219e-05,2]
[355630887,1741414256037,-1000.0,8.219e-05,2]
[355630888,1741414256046,-1000.0,8.219e-05,2]
[355630889,1741414256055,-1000.0,8.219e-05,2]
[355630890,1741414256065,-1000.0,8.219e-05,2]
[355630891,1741414256074,-1000.0,8.219e-05,2]
[355630892,1741414256082,-1000.0,8.219e-05,2]
[355630893,1741414256091,-1000.0,8.219e-05,2]
[355630894,1741414256099,-1000.0,8.219e-05,2]
[355630895,1741414256107,-1000.0,8.219e-05,2]
[355630896,1741414256116,-1000.0,8.219e-05,2]
[355630897,1741414256124,-1000.0,8.219e-05,2]
[355630898,1741414256133,-1000.0,8.219e-05,2]
[355630899,1741414256143,-1000.0,8.219e-05,2]
[355630900,1741414256153,-1000.0,8.219e-05,2]
[355630901,1741414256162,-1000.0,8.219e-05,2]
[355630902,1741414256171,-1000.0,8.219e-05,2]
[355630903,1741414256181,-1000.0,8.219e-05,2]
[355630904,1741414256191,-225.0,8.219e-05,2]
[355630905,1741414256201,-799.78,8.219e-05,2]
[355630906,1741414256211,-1000.0,8.219e-05,2]
[355630907,1741414256221,-452.0,8.219e-05,2]
[355630908,1741414256398,-250.0,8.219e-05,2]
[355630909,1741414256408,-299.99,8.219e-05,2]
[355630910,1741414256419,-499.99,8.219e-05,2]
[355630911,1741414256428,-3621.06,8.219e-05,2]
[355630912,1741414256438,-4399.81,8.219e-05,2]
[355630913,1741414256447,-150.99,8.219e-05,2]
[355630914,1741414256457,-1319.97,8.219e-05,2]
[355630915,1741414256467,-1500.0,8.219e-05,2]
[355630916,1741414256477,-448.34,8.23e-05,2]
[355630917,1741414256486,-451.0,8.247e-05,2]
[355630918,1741414256497,-15914.4367077,8.25e-05,2]
[355630919,1741414256507,-36655.9448529,8.38e-05,2]
[355630920,1741414256516,-445.19,8.461e-05,2]
[355630921,1741414256526,-3370.0,8.466e-05,2]
[355630922,1741414256536,-180.63277948,8.473e-05,2]
[355630923,1741414256546,-308.33292003,8.473e-05,2]
[355630924,1741414256555,-163.1031967,8.473e-05,2]
[355630925,1741414256564,-619.96736581,8.473e-05,2]
[355630926,1741414256576,-501.06677935,8.473e-05,2]
[355630927,1741414256586,-198.31938895,8.473e-05,2]
[355630928,1741414256596,-523.32978351,8.473e-05,2]
[355630929,1741414256605,-160.27907637,8.473e-05,2]
[355630930,1741414256615,-160.92031838,8.473e-05,2]
[355630931,1741414256624,-243.63245171,8.473e-05,2]
[355630932,1741414256634,-162.05427108,8.473e-05,2]
[355630933,1741414256643,-151.1381342,8.473e-05,2]
[355630934,1741414256652,-475.22168511,8.473e-05,2]
[355630935,1741414256661,-153.20922883,8.473e-05,2]
[355630936,1741414256670,-154.35745465,8.473e-05,2]
[355630937,1741414256679,-152.01376014,8.473e-05,2]
[355630938,1741414256688,-152.85793549,8.473e-05,2]
[355630939,1741414256698,-1557.9026774,8.487e-05,2]
[355630940,1741414256707,-845.370654,8.487e-05,2]
[355630941,1741414256719,-1371.1192996,8.492e-05,3]
[355630942,1741414256731,-2420.44,8.492e-05,2]